fUST/lending_fUST_20250302
["ID","MTS","AMOUNT","RATE_DAILY","PERIOD"]
[355114562,1740909040956,-952.77,0.00021917,2]
[355114564,1740909040966,-500.0,0.00021917,2]
[355114566,1740909040975,-500.0,0.00021917,2]
[355114567,1740909040985,-500.0,0.00021917,2]
[355114568,1740909040995,-883.12,0.00021917,2]
[355114569,1740909041004,-500.0,0.00021917,2]
[355114570,1740909041017,-500.0,0.00021917,2]
[355114571,1740909041027,-3054.72,0.00021917,2]
[355114572,1740909041038,-1564.14,0.00021917,2]
[355114573,1740909041048,-2514.76,0.00021917,2]
[355114574,1740909041057,-32290.97,0.00021917,2]
[355114575,1740909041067,-500.0,0.00021917,2]
[355114576,1740909041077,-515.86,0.00021917,2]
[355114577,1740909041087,-570.31,0.00021917,2]
[355114578,1740909041097,-1327.7,0.00021917,2]
[355114579,1740909041107,-500.0,0.00021917,2]
[355114580,1740909041117,-500.0,0.00021917,2]
[355114581,1740909041126,-1081.4,0.00021917,2]
[355114582,1740909041136,-745.33,0.00021917,2]
[355114583,1740909041146,-669.01,0.00021917,2]
[355114584,1740909041155,-217.72,0.00022,7]
[355114585,1740909041166,-447.84,0.00022,2]
[355114586,1740909041176,-151.0,0.00022,2]
[355114588,1740909041186,-620.69,0.00022191,2]
[355114590,1740909041195,-500.0,0.00022191,2]
[355114592,1740909041206,-1750.69,0.00022191,2]
[355114594,1740909041216,-500.0,0.00022191,2]
[355114596,1740909041226,-500.0,0.00022191,2]
[355114598,1740909041235,-500.0,0.00022191,2]
[355114600,1740909041245,-500.0,0.00022191,2]
[355114602,1740909041255,-500.0,0.00022191,2]
[355114604,1740909041264,-500.0,0.00022191,2]
[355114606,1740909041273,-500.0,0.00022191,2]
[355114608,1740909041283,-224.47,0.00022191,2]
[355114610,1740909041292,-500.0,0.00022191,2]
[355114612,1740909041302,-500.0,0.00022191,2]
[355114614,1740909041311,-500.0,0.00022191,2]
[355114616,1740909041320,-500.0,0.00022191,2]
[355114618,1740909041329,-195.94,0.00022191,2]
[355114619,1740909041338,-500.0,0.00022191,2]
[355114621,1740909041348,-519.71,0.00022191,2]
[355114623,1740909041358,-2632.29,0.00022191,2]
[355114625,1740909041367,-500.0,0.00022191,2]
[355114627,1740909041377,-2322.97,0.00022191,2]
[355114630,1740909041387,-1424.81,0.00022191,2]
[355114632,1740909041396,-500.0,0.00022191,2]
[355114634,1740909041406,-500.0,0.00022191,2]
[355114636,1740909041415,-207.9,0.00022191,2]
[355114638,1740909041425,-500.0,0.00022191,2]
[355114640,1740909041434,-500.0,0.00022191,2]
[355114642,1740909041443,-1434.45,0.00022191,2]
[355114644,1740909041453,-500.0,0.00022191,2]
[355114646,1740909041462,-500.0,0.00022191,2]
[355114648,1740909041472,-1478.95,0.00022191,2]
[355114650,1740909041481,-704.42,0.00022191,2]
[355114652,1740909041490,-2319.86,0.00022191,2]
[355114654,1740909041500,-500.0,0.00022191,2]
[355114656,1740909041509,-979.87,0.00022191,2]
[355114658,1740909041519,-500.0,0.00022191,2]
[355114660,1740909041528,-2001.22,0.00022191,2]
[355114662,1740909041538,-500.0,0.00022191,2]
[355114664,1740909041547,-500.0,0.00022191,2]
[355114666,1740909041557,-500.0,0.00022191,2]
[355114668,1740909041567,-500.0,0.00022191,2]
[355114670,1740909041576,-952.77,0.00022191,2]
[355114672,1740909041586,-500.0,0.00022191,2]
[355114674,1740909041595,-500.0,0.00022191,2]
[355114676,1740909041605,-500.0,0.00022191,2]
[355114678,1740909041619,-883.12,0.00022191,2]
[355114680,1740909041629,-500.0,0.00022191,2]
[355114682,1740909041638,-500.0,0.00022191,2]
[355114684,1740909041648,-3054.72,0.00022191,2]
[355114686,1740909041658,-1564.14,0.00022191,2]
[355114688,1740909041668,-32290.97,0.00022191,2]
[355114690,1740909041677,-2514.76,0.00022191,2]
[355114692,1740909041688,-500.0,0.00022191,2]
[355114694,1740909041698,-515.86,0.00022191,2]
[355114696,1740909041708,-570.31,0.00022191,2]
[355114698,1740909041718,-1327.7,0.00022191,2]
[355114700,1740909041727,-500.0,0.00022191,2]
[355114702,1740909041737,-500.0,0.00022191,2]
[355114704,1740909041747,-1081.4,0.00022191,2]
[355114706,1740909041756,-745.33,0.00022191,2]
[355114708,1740909041766,-669.01,0.00022191,2]
[355114710,1740909041775,-171.71864476,0.00022365,2]
[355114712,1740909041785,-500.0,0.0002245,2]
[355114714,1740909041794,-500.0,0.00022465,2]
[355114716,1740909041804,-1750.69,0.00022465,2]
[355114717,1740909041814,-500.0,0.00022465,2]
[355114718,1740909041824,-283.59028264,0.00022465,2]
[355114719,1740909041834,-500.0,0.00022465,2]
[355114720,1740909041843,-500.0,0.00022465,2]
[355114721,1740909041853,-500.0,0.00022465,2]
[355114722,1740909041864,-500.0,0.00022465,2]
[355114723,1740909041874,-500.0,0.00022465,2]
[355114724,1740909041883,-500.0,0.00022465,2]
[355114725,1740909041893,-500.0,0.00022465,2]
[355114726,1740909041903,-500.0,0.00022465,2]
[355114727,1740909041912,-500.0,0.00022465,2]
[355114728,1740909041921,-500.0,0.00022465,2]
[355114729,1740909041932,-519.71,0.00022465,2]
[355114730,1740909041942,-2632.29,0.00022465,2]
[355114731,1740909041952,-500.0,0.00022465,2]
[355114732,1740909041962,-2322.97,0.00022465,2]
[355114733,1740909041972,-1424.81,0.00022465,2]
[355114734,1740909041982,-500.0,0.00022465,2]
[355114735,1740909041992,-500.0,0.00022465,2]
[355114736,1740909042002,-500.0,0.00022465,2]
[355114737,1740909042013,-500.0,0.00022465,2]
[355114738,1740909042023,-1434.45,0.00022465,2]
[355114739,1740909042033,-500.0,0.00022465,2]
[355114740,1740909042043,-500.0,0.00022465,2]
[355114741,1740909042054,-1478.95,0.00022465,2]
[355114742,1740909042063,-704.42,0.00022465,2]
[355114743,1740909042073,-2319.86,0.00022465,2]
[355114744,1740909042083,-500.0,0.00022465,2]
[355114745,1740909042093,-979.87,0.00022465,2]
[355114746,1740909042102,-500.0,0.00022465,2]
[355114747,1740909042112,-2001.22,0.00022465,2]
[355114748,1740909042122,-500.0,0.00022465,2]
[355114749,1740909042131,-500.0,0.00022465,2]
[355114750,1740909042141,-500.0,0.00022465,2]
[355114751,1740909042151,-500.0,0.00022465,2]
[355114752,1740909042160,-952.77,0.00022465,2]
[355114753,1740909042170,-500.0,0.00022465,2]
[355114754,1740909042180,-500.0,0.00022465,2]
[355114755,1740909042189,-500.0,0.00022465,2]
[355114756,1740909042199,-883.12,0.00022465,2]
[355114757,1740909042208,-500.0,0.00022465,2]
[355114758,1740909042218,-500.0,0.00022465,2]
[355114759,1740909042227,-3054.72,0.00022465,2]
[355114760,1740909042236,-1564.14,0.00022465,2]
[355114761,1740909042246,-2514.76,0.00022465,2]
[355114762,1740909042256,-32290.97,0.00022465,2]
[355114763,1740909042265,-500.0,0.00022465,2]
[355114764,1740909042275,-515.86,0.00022465,2]
[355114765,1740909042285,-570.31,0.00022465,2]
[355114766,1740909042294,-1327.7,0.00022465,2]
[355114767,1740909042304,-500.0,0.00022465,2]
[355114768,1740909042313,-500.0,0.00022465,2]
[355114769,1740909042323,-1081.4,0.00022465,2]
[355114770,1740909042333,-745.33,0.00022465,2]
[355114771,1740909042345,-669.01,0.00022465,2]
[355114772,1740909042355,-311.3222513,0.00022552,2]
[355114773,1740909042364,-500.0,0.00022595,2]
[355114774,1740909042375,-500.0,0.00022739,2]
[355114775,1740909042385,-1750.69,0.00022739,2]
[355114776,1740909042395,-500.0,0.00022739,2]
[355114777,1740909042404,-500.0,0.00022739,2]
[355114778,1740909042414,-500.0,0.00022739,2]
[355114779,1740909042424,-500.0,0.00022739,2]
[355114780,1740909042434,-500.0,0.00022739,2]
[355114783,1740909042444,-500.0,0.00022739,2]
[355114785,1740909042454,-500.0,0.00022739,2]
[355114787,1740909042463,-500.0,0.00022739,2]
[355114788,1740909042473,-500.0,0.00022739,2]
[355114789,1740909042483,-224.1139437,0.00022739,2]
[355114790,1740909042493,-500.0,0.00022739,2]
[355114792,1740909042503,-519.71,0.00022739,2]
[355114793,1740909042513,-2632.29,0.00022739,2]
[355114794,1740909042522,-456.6,0.00022739,2]
[355114795,1740909042532,-2322.97,0.00022739,2]
[355114796,1740909042544,-1424.81,0.00022739,2]
[355114797,1740909042554,-500.0,0.00022739,2]
[355114798,1740909042565,-500.0,0.00022739,2]
[355114799,1740909042575,-500.0,0.00022739,2]
[355114800,1740909042585,-500.0,0.00022739,2]
[355114801,1740909042594,-1434.45,0.00022739,2]
[355114802,1740909042604,-500.0,0.00022739,2]
[355114804,1740909042619,-500.0,0.00022739,2]
[355114805,1740909042630,-1478.95,0.00022739,2]
[355114806,1740909042640,-704.42,0.00022739,2]
[355114807,1740909042652,-2319.86,0.00022739,2]
[355114808,1740909042663,-649.28,0.00022739,2]
[355114809,1740909042673,-979.87,0.00022739,2]
[355114810,1740909042683,-500.0,0.00022739,2]
[355114811,1740909042695,-424.08217894,0.00022739,2]
[355114816,1740909042985,-453.35109061,0.00021917,2]
[355114817,1740909042995,-1402.40570968,0.00022739,2]
[355114914,1740909498451,-300.0,0.00020301,2]
[355114915,1740909499599,-300.0,0.00020301,2]
[355114916,1740909844342,-182.544387,0.00019429,2]
[355114918,1740909953228,-206.43574361,0.00019429,2]
[355114919,1740909958097,-382.71483563,0.00019429,2]
[355114920,1740910025716,151.0,0.000194,120]
[355114921,1740910030083,-302.90076908,0.00019429,2]
[355114922,1740910033082,-718.07151791,0.00019429,2]
[355114923,1740910033112,-868.83136148,0.00019429,2]
[355114924,1740910038125,-5595.98700849,0.00019429,2]
[355114925,1740910038149,-1272.4520223,0.00019553,2]
[355114926,1740910038171,-300.0,0.00020015,2]
[355114927,1740910038199,-17031.58836231,0.00020016,2]
[355114928,1740910046090,-7868.41163769,0.00020016,2]
[355114929,1740910046112,-1110.71127465,0.00020133,2]
[355114930,1740910046136,-171.2260753,0.00020233,2]
[355114931,1740910046159,-388.39478636,0.00020265,2]
[355114932,1740910046182,-169.43760859,0.00020265,2]
[355114933,1740910046205,-65.4610736,0.00020301,2]
[355114934,1740910046227,-815.68956129,0.00020365,2]
[355114935,1740910046250,-252.88827368,0.00020532,2]
[355114936,1740910046274,-500.0,0.00020532,2]
[355114937,1740910046296,-500.0,0.00020532,2]
[355114938,1740910046319,-500.0,0.00020532,2]
[355114939,1740910046343,-500.0,0.00020532,2]
[355114940,1740910046366,-500.0,0.00020532,2]
[355114941,1740910046391,-500.0,0.00020532,2]
[355114942,1740910046413,-280.13952622,0.00020532,2]
[355114943,1740910046436,-442.68866455,0.00020532,2]
[355114944,1740910046460,-500.0,0.00020532,2]
[355114945,1740910046483,-500.0,0.00020532,2]
[355114946,1740910046511,-500.0,0.00020532,2]
[355114947,1740910046536,-500.0,0.00020532,2]
[355114948,1740910046560,-500.0,0.00020532,2]
[355114949,1740910046584,-500.0,0.00020532,2]
[355114950,1740910046608,-500.0,0.00020532,2]
[355114951,1740910046631,-500.0,0.00020532,2]
[355114952,1740910046655,-269.27460668,0.00020532,2]
[355114953,1740910070092,-819.614043,0.000189,2]
[355114954,1740910145121,-250.0,0.00019959,2]
[355114955,1740910145145,-814.5515333,0.00020368,2]
[355114956,1740910145168,-4032.1199704,0.00020534,2]
[355114957,1740910145192,-300.0,0.00020604,2]
[355114958,1740910145219,-500.0,0.00020605,2]
[355114959,1740910145246,-500.0,0.00020605,2]
[355114960,1740910145270,-500.0,0.00020605,2]
[355114961,1740910145296,-500.0,0.00020605,2]
[355114962,1740910145321,-500.0,0.00020605,2]
[355114963,1740910145346,-500.0,0.00020605,2]
[355114964,1740910145372,-500.0,0.00020605,2]
[355114965,1740910145398,-500.0,0.00020605,2]
[355114966,1740910145423,-500.0,0.00020605,2]
[355114967,1740910145449,-500.0,0.00020605,2]
[355114968,1740910145474,-500.0,0.00020605,2]
[355114969,1740910145498,-500.0,0.00020605,2]
[355114970,1740910145523,-500.0,0.00020605,2]
[355114971,1740910145548,-500.0,0.00020605,2]
[355114972,1740910145573,-500.0,0.00020605,2]
[355114973,1740910145598,-500.0,0.00020605,2]
[355114974,1740910145622,-500.0,0.00020605,2]
[355114975,1740910145646,-500.0,0.00020605,2]
[355114976,1740910145670,-500.0,0.00020605,2]
[355114977,1740910145693,-500.0,0.00020605,2]
[355114978,1740910145716,-500.0,0.00020605,2]
[355114979,1740910145740,-500.0,0.00020605,2]
[355114980,1740910145764,-500.0,0.00020605,2]
[355114981,1740910145789,-500.0,0.00020605,2]
[355114982,1740910145816,-500.0,0.00020605,2]
[355114983,1740910145839,-500.0,0.00020605,2]
[355114984,1740910145863,-500.0,0.00020605,2]
[355114985,1740910145886,-500.0,0.00020605,2]
[355114986,1740910145910,-500.0,0.00020605,2]
[355114987,1740910145933,-500.0,0.00020605,2]
[355114988,1740910145956,-500.0,0.00020605,2]
[355114989,1740910145980,-500.0,0.00020605,2]
[355114990,1740910146004,-500.0,0.00020605,2]
[355114991,1740910146027,-500.0,0.00020605,2]
[355114992,1740910146057,-500.0,0.00020605,2]
[355114993,1740910146263,-500.0,0.00020605,2]
[355114994,1740910146289,-500.0,0.00020605,2]
[355114995,1740910146315,-500.0,0.00020605,2]
[355114996,1740910146344,-500.0,0.00020605,2]
[355114997,1740910146367,-500.0,0.00020605,2]
[355114998,1740910146391,-500.0,0.00020605,2]
[355114999,1740910146415,-500.0,0.00020605,2]
[355115000,1740910146439,-500.0,0.00020605,2]
[355115001,1740910146463,-500.0,0.00020605,2]
[355115002,1740910146487,-500.0,0.00020605,2]
[355115003,1740910146510,-500.0,0.00020605,2]
[355115004,1740910146534,-500.0,0.00020605,2]
[355115005,1740910146559,-500.0,0.00020605,2]
[355115006,1740910146583,-500.0,0.00020605,2]
[355115007,1740910146607,-500.0,0.00020605,2]
[355115008,1740910146631,-500.0,0.00020605,2]
[355115009,1740910146653,-500.0,0.00020605,2]
[355115010,1740910146676,-500.0,0.00020605,2]
[355115011,1740910146698,-500.0,0.00020605,2]
[355115012,1740910146721,-601.90448072,0.00020605,2]
[355115013,1740910146742,-10000.0,0.00020606,2]
[355115014,1740910146763,-423.4571842,0.00020881,2]
[355115015,1740910146784,-250.0,0.00020891,2]
[355115016,1740910146806,-6309.78303696,0.00020915,2]
[355115017,1740910152097,-971.87236538,0.00020505,2]
[355115018,1740910154625,175.72525901,0.00020605,2]
[355115019,1740910160113,-234.19897636,0.00020605,2]
[355115020,1740910162136,-90.07576462,0.00020605,2]
[355115021,1740910223038,102.78638666,0.00020754,2]
[355115065,1740910232447,-96.53681794,0.00020754,2]
[355115104,1740910238500,-1292.5101834,0.00020754,2]
[355115105,1740910238510,-930.74968916,0.00020915,2]
[355115106,1740910238530,-1393.12700239,0.00020915,2]
[355115175,1740910246347,-33.65564101,0.00020915,2]
[355115177,1740910399112,-563.37533598,0.000189,2]
[355115178,1740910671864,-375.58355732,0.000189,2]
[355115180,1740910986745,-250.38903822,0.000189,2]
[355115183,1740911103753,-572.3748842,0.00019623,2]
[355115186,1740911149152,-212.9715088,0.0002002,2]
[355115187,1740911149175,-160.0560362,0.0002014,2]
[355115189,1740911222862,-1386.58707356,0.0002014,2]
[355115190,1740911238137,-300.0,0.00020171,2]
[355115191,1740911238162,-3949.44798897,0.00020172,2]
[355115192,1740911245091,-376.38227536,0.00020172,2]
[355115204,1740911275316,7577.66283823,0.00016,2]
[355115206,1740911283406,-166.92602548,0.000189,2]
[355115207,1740911310707,277.34779489,0.0001,2]
[355115208,1740911317859,3073.43859713,0.000145,2]
[355115209,1740911320648,300.0,0.0001,2]
[355115210,1740911322392,618.89540066,0.000135,2]
[355115211,1740911322428,15037.15275112,0.000135,2]
[355115212,1740911330561,-300.0,0.00018,4]
[355115213,1740911346145,-504.6853814,0.00019579,2]
[355115214,1740911346166,-1000.0,0.00020172,2]
[355115215,1740911346187,-5023.19021557,0.00020172,2]
[355115216,1740911346208,-1601.84477909,0.0002023,2]
[355115217,1740911346230,-600.0,0.0002024,2]
[355115218,1740911346252,-901.95962664,0.0002057,2]
[355115219,1740911346275,-196.79811355,0.0002061,2]
[355115220,1740911346296,-300.0,0.00020634,2]
[355115221,1740911346318,-250.0,0.00020635,2]
[355115222,1740911346340,-153.63,0.00020662,2]
[355115223,1740911346363,-500.0,0.00020669,2]
[355115224,1740911346384,-208.58405207,0.00020669,2]
[355115225,1740911346404,-500.0,0.00020669,2]
[355115226,1740911346427,-500.0,0.00020669,2]
[355115227,1740911346452,-500.0,0.00020669,2]
[355115228,1740911346479,-500.0,0.00020669,2]
[355115229,1740911346501,-500.0,0.00020669,2]
[355115230,1740911346528,-348.28138096,0.00020669,2]
[355115231,1740911346554,-500.0,0.00020669,2]
[355115232,1740911346578,-500.0,0.00020669,2]
[355115233,1740911346601,-500.0,0.00020669,2]
[355115234,1740911346625,-500.0,0.00020669,2]
[355115235,1740911346650,-500.0,0.00020669,2]
[355115236,1740911346673,-500.0,0.00020669,2]
[355115237,1740911346696,-500.0,0.00020669,2]
[355115238,1740911346720,-500.0,0.00020669,2]
[355115239,1740911346743,-500.0,0.00020669,2]
[355115240,1740911346766,-500.0,0.00020669,2]
[355115241,1740911346789,-500.0,0.00020669,2]
[355115242,1740911346813,-500.0,0.00020669,2]
[355115243,1740911346836,-500.0,0.00020669,2]
[355115244,1740911346858,-500.0,0.00020669,2]
[355115245,1740911346882,-500.0,0.00020669,2]
[355115246,1740911346905,-571.81423485,0.00020669,2]
[355115247,1740911346927,-500.0,0.00020669,2]
[355115248,1740911346949,-500.0,0.00020669,2]
[355115249,1740911346972,-500.0,0.00020669,2]
[355115250,1740911346994,-500.0,0.00020669,2]
[355115251,1740911347017,-500.0,0.00020669,2]
[355115252,1740911347040,-500.0,0.00020669,2]
[355115253,1740911347064,-500.0,0.00020669,2]
[355115254,1740911347087,-500.0,0.00020669,2]
[355115255,1740911347110,-500.0,0.00020669,2]
[355115256,1740911347132,-474.7171739,0.00020669,2]
[355115257,1740911355193,-25.2828261,0.00020669,2]
[355115258,1740911355218,-500.0,0.00020669,2]
[355115259,1740911355243,-500.0,0.00020669,2]
[355115260,1740911355267,-500.0,0.00020669,2]
[355115261,1740911355291,-500.0,0.00020669,2]
[355115262,1740911355315,-500.0,0.00020669,2]
[355115263,1740911355337,-500.0,0.00020669,2]
[355115264,1740911355360,-500.0,0.00020669,2]
[355115265,1740911355381,-616.21802072,0.00020669,2]
[355115266,1740911355404,-500.0,0.00020669,2]
[355115267,1740911355426,-500.0,0.00020669,2]
[355115268,1740911355450,-500.0,0.00020669,2]
[355115269,1740911355479,-500.0,0.00020669,2]
[355115270,1740911355503,-500.0,0.00020669,2]
[355115271,1740911355530,-500.0,0.00020669,2]
[355115272,1740911355554,-500.0,0.00020669,2]
[355115273,1740911355584,-500.0,0.00020669,2]
[355115274,1740911355608,-500.0,0.00020669,2]
[355115275,1740911355632,-500.0,0.00020669,2]
[355115276,1740911355657,-500.0,0.00020669,2]
[355115277,1740911355683,-500.0,0.00020669,2]
[355115278,1740911355707,-500.0,0.00020669,2]
[355115279,1740911355730,-500.0,0.00020669,2]
[355115280,1740911355753,-500.0,0.00020669,2]
[355115281,1740911355776,-500.0,0.00020669,2]
[355115282,1740911355798,-500.0,0.00020669,2]
[355115283,1740911355821,-500.0,0.00020669,2]
[355115284,1740911355845,-500.0,0.00020669,2]
[355115285,1740911355867,-500.0,0.00020669,2]
[355115286,1740911355890,-500.0,0.00020669,2]
[355115287,1740911355913,-500.0,0.00020669,2]
[355115288,1740911355935,-500.0,0.00020669,2]
[355115289,1740911355958,-546.32811357,0.00020669,2]
[355115290,1740911355981,-500.0,0.00020669,2]
[355115291,1740911356004,-500.0,0.00020669,2]
[355115292,1740911356027,-500.0,0.00020669,2]
[355115293,1740911356050,-500.0,0.00020669,2]
[355115294,1740911356073,-500.0,0.00020669,2]
[355115295,1740911356096,-500.0,0.00020669,2]
[355115296,1740911356118,-500.0,0.00020669,2]
[355115297,1740911356142,-500.0,0.00020669,2]
[355115298,1740911356165,-500.0,0.00020669,2]
[355115299,1740911356189,-500.0,0.00020669,2]
[355115300,1740911356213,-500.0,0.00020669,2]
[355115301,1740911356236,-500.0,0.00020669,2]
[355115302,1740911356259,-500.0,0.00020669,2]
[355115303,1740911356282,-500.0,0.00020669,2]
[355115304,1740911356305,-500.0,0.00020669,2]
[355115305,1740911356329,-500.0,0.00020669,2]
[355115306,1740911356352,-500.0,0.00020669,2]
[355115307,1740911356376,-500.0,0.00020669,2]
[355115308,1740911356399,-500.0,0.00020669,2]
[355115309,1740911356422,-500.0,0.00020669,2]
[355115310,1740911356445,-500.0,0.00020669,2]
[355115311,1740911356469,-500.0,0.00020669,2]
[355115312,1740911356496,-600.0,0.00020669,2]
[355115313,1740911356517,-500.0,0.0002067,2]
[355115314,1740911356540,-5522.20858811,0.00020672,2]
[355115315,1740911359160,-16558.70224645,0.00020672,2]
[355115316,1740911368096,-2819.08916544,0.00020672,2]
[355115317,1740911368118,-261.05206388,0.00020715,2]
[355115318,1740911368140,-197.92960751,0.00020815,2]
[355115319,1740911368161,-1274.1720015,0.00020845,2]
[355115337,1740911433255,-850.9011721,0.00020983,2]
[355115338,1740911433265,-1000.0,0.00021,2]
[355115339,1740911433275,-151.0,0.000215,2]
[355115340,1740911433284,-300.0,0.00021906,2]
[355115341,1740911433294,-153.63,0.00021907,2]
[355115342,1740911433304,-153.63,0.00021907,2]
[355115343,1740911433314,-153.63,0.00021907,2]
[355115344,1740911433323,-153.63,0.00021907,2]
[355115345,1740911433332,-153.63,0.00021907,2]
[355115346,1740911433342,-153.63,0.00021907,2]
[355115347,1740911433351,-153.63,0.00021907,2]
[355115348,1740911433361,-153.63,0.00021907,2]
[355115349,1740911433371,-535.38,0.00021907,3]
[355115350,1740911433380,-267.69,0.00021907,3]
[355115351,1740911433390,-500.0,0.00021917,2]
[355115352,1740911433399,-500.0,0.00021917,2]
[355115353,1740911433409,-500.0,0.00021917,2]
[355115354,1740911433419,-500.0,0.00021917,2]
[355115355,1740911433428,-500.0,0.00021917,2]
[355115356,1740911433438,-500.0,0.00021917,2]
[355115357,1740911433448,-500.0,0.00021917,2]
[355115358,1740911433458,-512.29,0.00021917,2]
[355115359,1740911433467,-500.0,0.00021917,2]
[355115360,1740911433477,-500.0,0.00021917,2]
[355115361,1740911433487,-500.0,0.00021917,2]
[355115362,1740911433497,-500.0,0.00021917,2]
[355115363,1740911433511,-500.0,0.00021917,2]
[355115364,1740911433521,-500.0,0.00021917,2]
[355115365,1740911433531,-500.0,0.00021917,2]
[355115366,1740911433540,-500.0,0.00021917,2]
[355115367,1740911433552,-463.446,0.00021917,2]
[355115368,1740911433562,-500.0,0.00021917,2]
[355115369,1740911433571,-500.0,0.00021917,2]
[355115370,1740911433582,-579.95951552,0.00021917,2]
[355115371,1740911433592,-500.0,0.00021917,2]
[355115372,1740911433602,-500.0,0.00021917,2]
[355115373,1740911433612,-500.0,0.00021917,2]
[355115374,1740911433622,-298.55,0.00021917,2]
[355115375,1740911433631,-500.0,0.00021917,2]
[355115376,1740911433641,-500.0,0.00021917,2]
[355115377,1740911433650,-500.0,0.00021917,2]
[355115378,1740911433660,-500.0,0.00021917,2]
[355115379,1740911433670,-1458.91,0.00021917,2]
[355115380,1740911433680,-194.63851491,0.00021917,2]
[355115381,1740911433690,-500.0,0.00021917,2]
[355115382,1740911433699,-500.0,0.00021917,2]
[355115383,1740911433709,-652.16,0.00021917,2]
[355115384,1740911433719,-500.0,0.00021917,2]
[355115385,1740911433728,-500.0,0.00021917,2]
[355115386,1740911433738,-500.0,0.00021917,2]
[355115387,1740911433747,-500.0,0.00021917,2]
[355115388,1740911433757,-500.0,0.00021917,2]
[355115389,1740911433767,-561.84,0.00021917,2]
[355115390,1740911433777,-500.0,0.00021917,2]
[355115391,1740911433787,-2283.95,0.00021917,2]
[355115392,1740911433797,-500.0,0.00021917,2]
[355115393,1740911433807,-2341.86,0.00021917,2]
[355115394,1740911433817,-544.2,0.00021917,2]
[355115395,1740911433827,-500.0,0.00021917,2]
[355115396,1740911433837,-500.0,0.00021917,2]
[355115397,1740911433847,-500.0,0.00021917,2]
[355115398,1740911433857,-1325.46,0.00021917,2]
[355115399,1740911433866,-1232.46,0.00021917,2]
[355115400,1740911433876,-647.74,0.00021917,2]
[355115401,1740911433885,-732.71,0.00021917,2]
[355115402,1740911433895,-500.0,0.00021917,2]
[355115403,1740911433904,-1000.0,0.00021917,5]
[355115404,1740911433913,-1674.96,0.00021917,2]
[355115405,1740911433924,-500.0,0.00021917,2]
[355115406,1740911433933,-500.0,0.00021917,2]
[355115407,1740911433943,-500.0,0.00021917,2]
[355115408,1740911433952,-500.0,0.00021917,2]
[355115409,1740911433961,-500.0,0.00021917,2]
[355115410,1740911433971,-500.0,0.00021917,2]
[355115411,1740911433980,-500.0,0.00021917,2]
[355115412,1740911433990,-192.24000962,0.00021917,2]
[355115413,1740911434259,-645.69999038,0.00021917,2]
[355115414,1740911434269,-500.0,0.00021917,2]
[355115415,1740911434279,-500.0,0.00021917,2]
[355115416,1740911434288,-500.0,0.00021917,2]
[355115417,1740911434297,-848.6,0.00021917,2]
[355115418,1740911434307,-505.90034123,0.00021917,2]
[355115419,1740911434317,-2672.88,0.00021917,2]
[355115420,1740911434326,-500.0,0.00021917,2]